fUSD/lending_fUSD_20260406
["ID","MTS","AMOUNT","RATE_DAILY","PERIOD"]
[419873187,1775453473728,-698.0,0.00015385,2]
[419873188,1775453473738,-500.0,0.00015385,2]
[419873189,1775453473749,-500.0,0.00015385,2]
[419873190,1775453473760,-341.949901,0.00015439,7]
[419873191,1775453473771,-219.63558,0.00015439,7]
[419873192,1775453473782,-500.0,0.00015441,2]
[419873193,1775453473793,-265.84700735,0.00015441,2]
[419873194,1775453473803,-500.0,0.00015441,2]
[419873195,1775453473814,-500.0,0.00015441,2]
[419873196,1775453473824,-1727.4918682,0.00015444,2]
[419873197,1775453473834,-1712.93078312,0.00015453,2]
[419873198,1775453473844,-200.0,0.00015453,2]
[419873199,1775453473855,-217.15233878,0.00015453,2]
[419873200,1775453473865,-150.0,0.00015467,2]
[419873201,1775453473875,-783.33,0.00015467,2]
[419873202,1775453473887,-1732.94,0.00015471,2]
[419873203,1775453473897,-8865.09546436,0.00015472,2]
[419873204,1775453473908,-1900.0,0.00015481,2]
[419873205,1775453473918,-3000.0,0.00015481,2]
[419873206,1775453473929,-507.0,0.00015489,4]
[419873207,1775453473939,-984.5886847,0.0001549,2]
[419873208,1775453473950,-831.6861757,0.0001549,2]
[419873209,1775453473960,-4000.0,0.00015507,2]
[419873210,1775453473971,-1911.869062,0.00015507,2]
[419873211,1775453473982,-207.56196,0.00015507,2]
[419873212,1775453473992,-603.58097,0.00015507,2]
[419873213,1775453474003,-1911.869062,0.00015507,2]
[419873214,1775453474013,-603.58097,0.00015507,2]
[419873215,1775453474024,-1911.869062,0.00015507,2]
[419873216,1775453474034,-151.0,0.00015507,2]
[419873217,1775453474044,-603.58097,0.00015507,2]
[419873218,1775453474055,-1911.869062,0.00015507,2]
[419873219,1775453474065,-1321.066182,0.00015507,2]
[419873220,1775453474076,-1662.517604,0.00015507,2]
[419873221,1775453474086,-151.0,0.00015507,2]
[419873222,1775453474097,-207.56196,0.00015507,2]
[419873223,1775453474107,-151.0,0.00015507,2]
[419873224,1775453474119,-603.58097,0.00015507,2]
[419873225,1775453474131,-1321.066182,0.00015507,2]
[419873226,1775453474142,-1662.517604,0.00015507,2]
[419873227,1775453474153,-207.56196,0.00015507,2]
[419873228,1775453474808,-151.0,0.00015507,2]
[419873229,1775453474854,-151.0,0.00015507,2]
[419873230,1775453474865,-151.0,0.00015507,2]
[419873231,1775453474874,-1321.066182,0.00015507,2]
[419873232,1775453474884,-1662.517604,0.00015507,2]
[419873233,1775453474893,-207.56196,0.00015507,2]
[419873234,1775453474903,-151.0,0.00015507,2]
[419873235,1775453474912,-151.0,0.00015507,2]
[419873236,1775453474922,-1662.517604,0.00015507,2]
[419873237,1775453474931,-1604.4544063,0.00015516,2]
[419873238,1775453474940,-2000.0,0.00015516,2]
[419873239,1775453474950,-1515.88680652,0.00015516,2]
[419873240,1775453474960,-219.39866,0.00015536,2]
[419873241,1775453474971,-219.39866,0.00015536,2]
[419873242,1775453474981,-219.39866,0.00015536,2]
[419873243,1775453474991,-151.0,0.00015536,2]
[419873244,1775453475001,-219.39866,0.00015536,2]
[419873245,1775453475011,-151.0,0.00015536,2]
[419873246,1775453475021,-151.0,0.00015536,2]
[419873247,1775453475031,-159.562018,0.00015536,2]
[419873248,1775453475041,-151.0,0.00015536,2]
[419873249,1775453475052,-151.0,0.00015536,2]
[419873250,1775453475061,-151.0,0.00015536,2]
[419873251,1775453475072,-151.0,0.00015536,2]
[419873252,1775453475082,-253.961661,0.00015536,2]
[419873253,1775453475092,-151.0,0.00015536,2]
[419873254,1775453475102,-253.961661,0.00015536,2]
[419873255,1775453475112,-253.961661,0.00015536,2]
[419873256,1775453475122,-253.961666,0.00015536,2]
[419873257,1775453475131,-151.0,0.00015536,2]
[419873258,1775453475141,-151.0,0.00015536,2]
[419873259,1775453475151,-151.0,0.00015536,2]
[419873260,1775453475161,-151.0,0.00015536,2]
[419873261,1775453475171,-419.420367,0.00015536,2]
[419873262,1775453475189,-419.420367,0.00015536,2]
[419873263,1775453475199,-419.420367,0.00015536,2]
[419873264,1775453475210,-419.420362,0.00015536,2]
[419873265,1775453475221,-227.565921,0.00015536,2]
[419873266,1775453475231,-227.565921,0.00015536,2]
[419873267,1775453475241,-338.158121,0.00015536,2]
[419873268,1775453475252,-227.565921,0.00015536,2]
[419873269,1775453475262,-338.158121,0.00015536,2]
[419873270,1775453475273,-227.56592,0.00015536,2]
[419873271,1775453475283,-338.158121,0.00015536,2]
[419873272,1775453475293,-225.089325,0.00015536,2]
[419873273,1775453475305,-338.158117,0.00015536,2]
[419873274,1775453475316,-225.089325,0.00015536,2]
[419873275,1775453475326,-225.089325,0.00015536,2]
[419873276,1775453475337,-225.089323,0.00015536,2]
[419873277,1775453475347,-1380.184586,0.00015536,2]
[419873278,1775453475358,-1380.184586,0.00015536,2]
[419873279,1775453475368,-840.224898,0.00015536,2]
[419873280,1775453475379,-189.409206,0.00015536,2]
[419873281,1775453475390,-1380.184586,0.00015536,2]
[419873282,1775453475401,-840.224898,0.00015536,2]
[419873283,1775453475412,-189.409206,0.00015536,2]
[419873284,1775453475422,-840.224898,0.00015536,2]
[419873285,1775453475433,-1380.18459,0.00015536,2]
[419873286,1775453475445,-189.409206,0.00015536,2]
[419873287,1775453475456,-840.224892,0.00015536,2]
[419873288,1775453475467,-189.409202,0.00015536,2]
[419873289,1775453475478,-151.0,0.00015536,2]
[419873290,1775453475489,-1543.678124,0.00015536,2]
[419873291,1775453475499,-1543.678124,0.00015536,2]
[419873292,1775453475510,-151.0,0.00015536,2]
[419873293,1775453475521,-1543.678124,0.00015536,2]
[419873294,1775453475531,-1543.678132,0.00015536,2]
[419873295,1775453475542,-151.0,0.00015536,2]
[419873296,1775453475553,-396.26201652,0.00015547,2]
[419873297,1775453475563,-220.5152176,0.00015547,2]
[419873298,1775453475574,-171.81625965,0.00015567,2]
[419873299,1775453475584,-500.0,0.00015567,2]
[419873300,1775453475595,-500.0,0.00015567,2]
[419873301,1775453475606,-261.52184258,0.00015584,2]
[419873302,1775453475616,-500.0,0.00015584,2]
[419873303,1775453475627,-521.78477793,0.00015584,2]
[419873304,1775453475637,-500.0,0.00015584,2]
[419873305,1775453475648,-736.0,0.00015599,2]
[419873306,1775453475659,-150.0,0.000156,2]
[419873307,1775453475670,-150.0,0.000156,2]
[419873308,1775453475684,-2000.0,0.00015655,2]
[419873309,1775453475694,-500.0,0.00015659,2]
[419873310,1775453475705,-1538.0,0.00015659,2]
[419873311,1775453475716,-596.0,0.00015659,2]
[419873312,1775453475726,-698.0,0.00015659,2]
[419873313,1775453475737,-500.0,0.00015659,2]
[419873314,1775453475747,-500.0,0.00015659,2]
[419873315,1775453475759,-1573.0,0.0001568,2]
[419873316,1775453475769,-2811.0,0.0001568,2]
[419873317,1775453475780,-162.0,0.0001568,2]
[419873318,1775453475791,-162.0,0.0001568,2]
[419873319,1775453475802,-1574.0,0.0001568,2]
[419873320,1775453475812,-2811.0,0.0001568,2]
[419873321,1775453475823,-163.0,0.0001568,2]
[419873322,1775453475833,-151.0,0.00015697,2]
[419873323,1775453475843,-351.0,0.00015698,4]
[419873324,1775453475854,-106223.0900791,0.000157,2]
[419873325,1775453475865,-219.39866,0.000157,2]
[419873326,1775453475875,-219.39866,0.000157,2]
[419873327,1775453475885,-219.39866,0.000157,2]
[419873328,1775453475896,-151.0,0.000157,2]
[419873329,1775453475907,-219.398662,0.000157,2]
[419873330,1775453475918,-151.0,0.000157,2]
[419873331,1775453475928,-151.0,0.000157,2]
[419873332,1775453475938,-151.0,0.000157,2]
[419873333,1775453475948,-151.0,0.000157,2]
[419873334,1775453475959,-151.0,0.000157,2]
[419873335,1775453475970,-164.724933,0.000157,2]
[419873336,1775453475981,-164.724933,0.000157,2]
[419873337,1775453475991,-181.440263,0.000157,2]
[419873338,1775453476002,-164.724933,0.000157,2]
[419873339,1775453476012,-181.440263,0.000157,2]
[419873340,1775453476024,-164.724936,0.000157,2]
[419873341,1775453476035,-181.440263,0.000157,2]
[419873342,1775453476045,-151.0,0.000157,2]
[419873343,1775453476056,-151.0,0.000157,2]
[419873344,1775453476066,-181.440262,0.000157,2]
[419873345,1775453476077,-188.450932,0.000157,2]
[419873346,1775453476087,-188.450932,0.000157,2]
[419873347,1775453476097,-188.450932,0.000157,2]
[419873348,1775453476108,-188.450936,0.000157,2]
[419873349,1775453476119,-183.931815,0.000157,2]
[419873350,1775453476129,-196.147739,0.000157,2]
[419873351,1775453476140,-151.0,0.000157,2]
[419873352,1775453476150,-151.0,0.000157,2]
[419873353,1775453476161,-196.147739,0.000157,2]
[419873354,1775453476172,-400.0,0.000157,2]
[419873355,1775453476183,-151.0,0.000157,2]
[419873356,1775453476194,-151.0,0.000157,2]
[419873357,1775453476205,-196.147739,0.000157,2]
[419873358,1775453476216,-400.0,0.000157,2]
[419873359,1775453476227,-151.0,0.000157,2]
[419873360,1775453476237,-196.147735,0.000157,2]
[419873361,1775453476247,-400.0,0.000157,2]
[419873362,1775453476258,-400.0,0.000157,2]
[419873363,1775453476268,-151.0,0.000157,2]
[419873364,1775453476279,-151.0,0.000157,2]
[419873365,1775453476289,-232.194903,0.000157,2]
[419873366,1775453476300,-232.194903,0.000157,2]
[419873367,1775453476311,-232.194903,0.000157,2]
[419873368,1775453476321,-183.888997,0.000157,2]
[419873369,1775453476343,-232.194901,0.000157,2]
[419873370,1775453476358,-183.888997,0.000157,2]
[419873371,1775453476369,-183.888997,0.000157,2]
[419873372,1775453476380,-151.0,0.000157,2]
[419873373,1775453476391,-183.889001,0.000157,2]
[419873374,1775453476402,-157.023332,0.000157,2]
[419873375,1775453476413,-151.0,0.000157,2]
[419873376,1775453476424,-972.68871,0.000157,2]
[419873377,1775453476435,-972.68871,0.000157,2]
[419873378,1775453476447,-350.051396,0.000157,2]
[419873379,1775453476458,-972.68871,0.000157,2]
[419873380,1775453476469,-773.36273,0.000157,2]
[419873381,1775453476481,-350.051396,0.000157,2]
[419873382,1775453476492,-151.0,0.000157,2]
[419873383,1775453476502,-584.033683,0.000157,2]
[419873384,1775453476514,-773.36273,0.000157,2]
[419873385,1775453476525,-350.051396,0.000157,2]
[419873386,1775453476538,-151.0,0.000157,2]
[419873387,1775453476550,-773.36273,0.000157,2]
[419873388,1775453476562,-584.033683,0.000157,2]
[419873389,1775453476575,-350.051404,0.000157,2]
[419873390,1775453476586,-226.762757,0.000157,2]
[419873391,1775453476597,-773.362733,0.000157,2]
[419873392,1775453476608,-584.033683,0.000157,2]
[419873393,1775453476618,-584.033675,0.000157,2]
[419873394,1775453476628,-972.688715,0.000157,2]
[419873395,1775453476641,-687.953097,0.000157,2]
[419873396,1775453476651,-1025.046648,0.000157,2]
[419873397,1775453476661,-687.953097,0.000157,2]
[419873398,1775453476672,-1025.046648,0.000157,2]
[419873399,1775453476683,-687.953097,0.000157,2]
[419873400,1775453476694,-1025.046648,0.000157,2]
[419873401,1775453476705,-687.953093,0.000157,2]
[419873402,1775453476716,-1025.046654,0.000157,2]
[419873403,1775453476727,-725.87294272,0.00015709,2]
[419873404,1775453476738,-220.53667983,0.00015709,2]
[419873405,1775453476749,-500.0,0.00015715,2]
[419873406,1775453476759,-500.0,0.00015715,2]
[419873407,1775453476770,-500.0,0.00015715,2]
[419873408,1775453476781,-176.09510658,0.00015725,2]
[419873409,1775453476792,-783.39065645,0.00015741,2]
[419873410,1775453476802,-252.05,0.00015753,2]
[419873411,1775453476812,-162.46135457,0.00015758,2]
[419873412,1775453476823,-464.59097932,0.0001576,2]
[419873413,1775453476833,-216.74403786,0.00015769,2]
[419873414,1775453476844,-171.40100923,0.00015772,2]
[419873415,1775453476854,-1573.0,0.00015794,2]
[419873416,1775453476865,-1600.0,0.0001582,2]
[419873417,1775453476875,-385.4555372,0.00015833,2]
[419873418,1775453476885,-500.0,0.00015841,2]
[419873419,1775453476896,-500.0,0.00015841,2]
[419873420,1775453476907,-265.69199788,0.00015858,2]
[419873421,1775453476917,-500.0,0.00015858,2]
[419873422,1775453476928,-1577.56,0.00015862,2]
[419873423,1775453476939,-25000.0,0.00015865,3]
[419873424,1775453476949,-30000.0,0.00015865,2]
[419873425,1775453476959,-748.72786933,0.00015865,3]
[419873426,1775453476969,-101689.96047356,0.00015865,3]
[419873427,1775453478419,-4261.04375671,0.00015865,3]
[419873428,1775453478435,-669.57712273,0.00015507,2]
[419873429,1775453478961,-1437.113367,0.00014249,2]
[419873430,1775453478971,-206.81666798,0.00014249,2]
[419873431,1775453478983,-869.502387,0.00014249,2]
[419873432,1775453478995,-1317.71047602,0.00014249,2]
[419873433,1775453479004,-1047.56452398,0.00014563,2]
[419873434,1775453479016,-389.54884302,0.00014563,2]
[419873435,1775453479026,-2121.45115698,0.00014563,2]
[419873436,1775453479038,-272.57837402,0.00014563,2]
[419873437,1775453479047,-1437.113367,0.00014958,2]
[419873438,1775453479057,-134.39825898,0.00014958,2]
[419873439,1775453479073,-2259.63127202,0.00014958,2]
[419873440,1775453479083,-651.48905927,0.00015507,2]
[419873441,1775453479093,-279.710116,0.00015507,2]
[419873442,1775453479103,-1437.113367,0.00015507,2]
[419873443,1775453479113,-2192.67589327,0.00015507,2]
[419873444,1775453479733,-1046.0,0.00013276,2]
[419873445,1775453479744,-1437.113367,0.00014249,2]
[419873446,1775453479754,-151.0,0.00014249,2]
[419873447,1775453479765,-770.446633,0.00014249,2]
[419873448,1775453479794,-1623.582898,0.00014249,2]
[419873449,1775453479804,-196.402077,0.00014249,2]
[419873450,1775453479814,-1437.113367,0.00014249,2]
[419873451,1775453479823,-2394.029531,0.00014249,2]
[419873452,1775453479833,-1437.113367,0.00014249,2]
[419873453,1775453479843,-2394.029531,0.00014249,2]
[419873454,1775453479853,-1437.113367,0.00014563,2]
[419873455,1775453479863,-2394.029531,0.00014563,2]
[419873456,1775453479873,-160.402454,0.00014563,2]
[419873457,1775453479883,-1437.113367,0.00014563,2]
[419873458,1775453479893,-2394.029531,0.00014563,2]
[419873459,1775453479903,-1437.113367,0.00014563,2]
[419873460,1775453479913,-1437.113367,0.00014958,2]
[419873461,1775453479922,-2394.029531,0.00014958,2]
[419873462,1775453479933,-1437.113367,0.00014958,2]
[419873463,1775453479943,-2394.029531,0.00014958,2]
[419873464,1775453479953,-1437.113367,0.00014958,2]
[419873465,1775453479962,-158.47279,0.00015167,2]
[419873466,1775453479972,-201.35363773,0.00015507,2]
[419873467,1775453480187,-1437.113367,0.00015507,2]
[419873468,1775453480197,-2394.029531,0.00015507,2]
[419873469,1775453480207,-1437.113367,0.00015507,2]
[419873470,1775453480217,-2394.029531,0.00015507,2]
[419873471,1775453480227,-4534.22607055,0.00015865,3]
[419873472,1775453480237,-2889.528486,0.00015865,2]
[419873473,1775453480247,-1476.997419,0.00015865,2]
[419873474,1775453480257,-2889.528486,0.00015865,2]
[419873475,1775453480266,-1476.997419,0.00015865,2]
[419873476,1775453480277,-2889.528486,0.00015865,2]
[419873477,1775453480287,-151.0,0.00015865,2]
[419873478,1775453480297,-1476.997419,0.00015865,2]
[419873479,1775453480307,-2889.52849,0.00015865,2]
[419873480,1775453480317,-962.689318,0.00015865,2]
[419873481,1775453480327,-151.0,0.00015865,2]
[419873482,1775453480337,-1476.997424,0.00015865,2]
[419873483,1775453480347,-962.689318,0.00015865,2]
[419873484,1775453480357,-151.0,0.00015865,2]
[419873485,1775453480368,-151.0,0.00015865,2]
[419873486,1775453480378,-707.432459,0.00015865,2]
[419873487,1775453480388,-283.232964,0.00015865,2]
[419873488,1775453480398,-1728.124632,0.00015865,2]
[419873489,1775453480408,-962.689318,0.00015865,2]
[419873490,1775453480418,-4684.066424,0.00015865,2]
[419873491,1775453480428,-707.432459,0.00015865,2]
[419873492,1775453480439,-962.689322,0.00015865,2]
[419873493,1775453480450,-1728.124632,0.00015865,2]
[419873494,1775453480459,-707.432459,0.00015865,2]
[419873495,1775453480469,-4684.066424,0.00015865,2]
[419873496,1775453480479,-1728.124632,0.00015865,2]
[419873497,1775453480489,-707.432457,0.00015865,2]
[419873498,1775453480499,-4684.066424,0.00015865,2]
[419873499,1775453480509,-151.0,0.00015865,2]
[419873500,1775453480518,-1728.124635,0.00015865,2]
[419873501,1775453480528,-4684.066434,0.00015865,2]
[419873502,1775453480539,-151.0,0.00015865,2]
[419873503,1775453480548,-151.0,0.00015865,2]
[419873504,1775453480558,-151.0,0.00015865,2]
[419873505,1775453480567,-151.0,0.00015865,2]
[419873506,1775453480577,-151.0,0.00015865,2]
[419873507,1775453480586,-193.019794,0.00015865,2]
[419873508,1775453480596,-193.019794,0.00015865,2]
[419873509,1775453480605,-193.019794,0.00015865,2]
[419873510,1775453480615,-162.44938,0.00015865,2]
[419873511,1775453480624,-193.019786,0.00015865,2]
[419873512,1775453480634,-162.44938,0.00015865,2]
[419873513,1775453480643,-162.44938,0.00015865,2]
[419873514,1775453480653,-162.449381,0.00015865,2]
[419873515,1775453480662,-338.087449,0.00015865,2]
[419873516,1775453480671,-338.087449,0.00015865,2]
[419873517,1775453480681,-151.0,0.00015865,2]
[419873518,1775453480690,-250.538421,0.00015865,2]
[419873519,1775453480700,-250.538421,0.00015865,2]
[419873520,1775453480709,-269.025275,0.00015865,2]
[419873521,1775453480718,-250.538421,0.00015865,2]
[419873522,1775453480729,-269.025275,0.00015865,2]
[419873523,1775453480741,-250.538412,0.00015865,2]
[419873524,1775453480751,-269.025275,0.00015865,2]
[419873525,1775453480761,-338.087449,0.00015865,2]
[419873526,1775453480771,-269.025266,0.00015865,2]
[419873527,1775453480781,-338.087441,0.00015865,2]
[419873528,1775453480790,-151.0,0.00015865,2]
[419873529,1775453480800,-1911.869062,0.00015865,2]
[419873530,1775453480809,-207.56196,0.00015865,2]
[419873531,1775453480819,-603.58097,0.00015865,2]
[419873532,1775453480828,-1911.869062,0.00015865,2]
[419873533,1775453480838,-603.58097,0.00015865,2]
[419873534,1775453480847,-1911.869062,0.00015865,2]
[419873535,1775453480857,-151.0,0.00015865,2]
[419873536,1775453480866,-603.58097,0.00015865,2]
[419873537,1775453480876,-1911.869062,0.00015865,2]
[419873538,1775453480885,-1321.066182,0.00015865,2]
[419873539,1775453480895,-1662.517604,0.00015865,2]
[419873540,1775453480905,-151.0,0.00015865,2]
[419873541,1775453480915,-207.56196,0.00015865,2]
[419873542,1775453480924,-151.0,0.00015865,2]
[419873543,1775453480934,-603.58097,0.00015865,2]
[419873544,1775453480943,-1321.066182,0.00015865,2]
[419873545,1775453480953,-1662.517604,0.00015865,2]
[419873546,1775453480963,-207.56196,0.00015865,2]
[419873547,1775453480972,-151.0,0.00015865,2]
[419873548,1775453480981,-151.0,0.00015865,2]
[419873549,1775453480991,-1321.066182,0.00015865,2]
[419873550,1775453481000,-1662.517604,0.00015865,2]
[419873551,1775453481010,-207.561962,0.00015865,2]
[419873552,1775453481019,-151.0,0.00015865,2]
[419873553,1775453481029,-151.0,0.00015865,2]
[419873554,1775453481038,-1662.517599,0.00015865,2]
[419873555,1775453481048,-1321.066191,0.00015865,2]
[419873556,1775453481057,-1437.113367,0.00015865,2]
[419873557,1775453481066,-151.0,0.00015865,2]
[419873558,1775453481075,-2394.029531,0.00015865,2]
[419873559,1775453481084,-1437.113367,0.00015865,2]
[419873560,1775453481094,-2394.029531,0.00015865,2]
[419873561,1775453481103,-1437.113367,0.00015865,2]
[419873562,1775453481112,-2394.029531,0.00015865,2]
[419873563,1775453481121,-192.16286006,0.00015865,2]
[419873564,1775453481130,-6729.08616628,0.00015874,3]
[419873565,1775453481191,-2394.029531,0.00014563,2]
[419873566,1775453481200,-16350.30079583,0.00015874,3]
[419873567,1775453481214,-1920.61303789,0.00015874,3]
[419873568,1775453481223,-3020.05696211,0.00015874,3]
[419873569,1775453481261,-2394.029531,0.00014958,2]
[419873570,1775453481270,-1437.113367,0.00015507,2]
[419873571,1775453481279,-21979.94303789,0.00015874,3]
[419873572,1775453481289,-25000.0,0.00015882,3]
[419873573,1775453481298,-25000.0,0.00015882,3]
[419873574,1775453481307,-25000.0,0.00015882,3]
[419873575,1775453481317,-219.6914309,0.0001589,2]
[419873576,1775453481326,-185.5742695,0.0001589,2]
[419873577,1775453481335,-2000.0,0.0001589,2]
[419873578,1775453481344,-25000.0,0.00015891,3]
[419873579,1775453481353,-25000.0,0.00015891,3]
[419873580,1775453481363,-25000.0,0.00015891,3]
[419873581,1775453481372,-25000.0,0.00015891,3]
[419873582,1775453481382,-151.0,0.00015892,2]
[419873583,1775453481391,-4000.0,0.00015895,2]
[419873584,1775453481401,-151.0,0.00015897,2]
[419873585,1775453481411,-158.0,0.000159,3]
[419873586,1775453481421,-158.0,0.000159,3]
[419873587,1775453481430,-160.0,0.000159,15]
[419873588,1775453481439,-647.91466627,0.000159,2]
[419873589,1775453481449,-5800.0,0.000159,2]
[419873590,1775453481458,-25000.0,0.000159,3]
[419873591,1775453481468,-5800.0,0.000159,2]
[419873592,1775453481477,-25000.0,0.000159,3]
[419873593,1775453481487,-5800.0,0.000159,2]
[419873594,1775453481497,-25000.0,0.000159,3]
[419873595,1775453481506,-210.7981,0.000159,2]
[419873596,1775453481515,-8865.09546436,0.000159,2]
[419873597,1775453481525,-25000.0,0.000159,3]
[419873598,1775453481534,-1150.714389,0.000159,2]
[419873599,1775453481544,-440.99298809,0.000159,2]
[419873600,1775453481553,-198.48074007,0.000159,2]
[419873601,1775453481563,-5551.33625979,0.000159,2]
[419873602,1775453481572,-500.0,0.000159,2]
[419873603,1775453481581,-1008.37950832,0.00015921,2]
[419873604,1775453481590,-500.0,0.00015933,2]
[419873605,1775453481599,-1538.0,0.00015933,2]
[419873606,1775453481608,-596.0,0.00015933,2]
[419873607,1775453481617,-698.0,0.00015933,2]
[419873608,1775453481627,-500.0,0.00015933,2]
[419873609,1775453481636,-500.0,0.00015933,2]
[419873610,1775453481645,-1917.76518435,0.00015936,2]
[419873611,1775453481655,-175.72483463,0.00015936,2]
[419873612,1775453481664,-358.67118095,0.00015969,2]
[419873613,1775453481673,-206.69412603,0.00015982,2]
[419873614,1775453481682,-247.3864547,0.00015984,2]
[419873615,1775453481692,-500.0,0.00015989,2]
[419873616,1775453481701,-500.0,0.00015989,2]
[419873617,1775453481710,-500.0,0.00015989,2]
[419873618,1775453481720,-151.0,0.00015997,2]
[419873619,1775453481729,-151.0,0.00015997,2]
[419873620,1775453481738,-396.04454664,0.00015999,2]
[419873621,1775453481747,-500.0,0.00015999,2]
[419873622,1775453481757,-2008.13980529,0.00015999,2]
[419873623,1775453481766,-150.0,0.00015999,2]
[419873624,1775453481776,-155.27197355,0.00016,2]
[419873625,1775453481785,-151.68583305,0.00016,2]
[419873626,1775453481795,-154.21213872,0.00016,2]
[419873627,1775453481804,-207.58250816,0.00016,2]
[419873628,1775453481813,-75340.22539354,0.00016,2]
[419873631,1775454631834,-380.68182096,0.0001,2]
[419873634,1775454631850,-443.84429495,0.0001,2]
[419873635,1775454631860,-250.0,0.00010499,2]
[419873637,1775454631870,-1200.0,0.00010998,2]
[419873638,1775454631879,-150.0,0.00010999,2]
[419873639,1775454631888,-1200.0,0.00010999,2]
[419873641,1775454631897,-300.0,0.00010999,2]
[419873643,1775454631907,-300.0,0.00010999,2]
[419873644,1775454631916,-250.0,0.00011,2]
[419873645,1775454631925,-195.0,0.00011,2]
[419873646,1775454631934,-195.0,0.00011,2]
[419873647,1775454631943,-195.0,0.00011,2]
[419873648,1775454631952,-195.0,0.00011,2]
[419873649,1775454631962,-196.9627033,0.00011,2]
[419873650,1775454631971,-5000.0,0.00011,2]
[419873651,1775454631980,-261.99182913,0.00011026,2]
[419873652,1775454632006,-158.57817087,0.00011026,2]
[419873653,1775454632016,-174.74,0.00011128,2]
[419873654,1775454632025,-533.97648248,0.00011248,2]
[419873655,1775454632085,-1303.81351752,0.00011248,2]
[419873656,1775454632096,-200.0,0.00011562,2]
[419873657,1775454632106,-204.0,0.00011717,2]
[419873658,1775454632116,-142.18648248,0.00011741,2]
[419873659,1775454632127,-223.81351752,0.00011741,2]
[419873660,1775454632137,-277.73848033,0.00011742,2]
[419873661,1775454632148,-339.75260614,0.00011742,2]
[419873662,1775454632160,-947.50891353,0.00011742,2]
[419873663,1775454632170,-186.13108647,0.00011749,2]
[419873672,1775454637605,-518.75938559,0.00011749,2]
[419873673,1775454637615,-9579.81170111,0.00011749,2]
[419873674,1775454637656,-10255.46242258,0.00011749,2]
[419873675,1775454637666,-528.81122194,0.00011764,2]
[419873676,1775454637676,-1580.0,0.00011766,2]
[419873677,1775454637686,-631.0,0.00011789,2]
[419873678,1775454637696,-415.6317217,0.00011836,2]
[419873679,1775454637706,-500.0,0.00011845,2]
[419873680,1775454637716,-3145.8801,0.00011845,2]
[419873681,1775454637725,-500.0,0.00011845,2]
[419873682,1775454637735,-500.0,0.00011845,2]
[419873683,1775454637745,-499.99999999,0.00011845,2]
[419873684,1775454637754,-500.0,0.00011845,2]
[419873685,1775454637764,-500.0,0.00011845,2]
[419873686,1775454637773,-500.0,0.00011845,2]
[419873687,1775454637783,-500.0,0.00011845,2]
[419873688,1775454637792,-629.42682592,0.00011845,2]
[419873689,1775454637802,-500.0,0.00011845,2]
[419873690,1775454637811,-500.0,0.00011845,2]
[419873691,1775454637821,-500.0,0.00011845,2]
[419873692,1775454637831,-500.0,0.00011845,2]
[419873693,1775454637840,-500.0,0.00011845,2]
[419873710,1775454638402,-629.94314859,0.00011845,2]
[419873711,1775454638412,-500.0,0.00011845,2]
[419873712,1775454638422,-500.0,0.00011845,2]
[419873713,1775454638431,-500.0,0.00011845,2]
[419873714,1775454638440,-500.0,0.00011845,2]
[419873715,1775454638450,-500.0,0.00011845,2]
[419873716,1775454638459,-500.0,0.00011845,2]
[419873717,1775454638469,-500.0,0.00011845,2]